fUSD/lending_fUSD_20251228
["ID","MTS","AMOUNT","RATE_DAILY","PERIOD"]
[399964435,1766949042442,-177.95989573,0.00016615,2]
[399964436,1766949042451,-150.0,0.0001662,2]
[399964437,1766949042460,-151.0,0.00016622,2]
[399964438,1766949042469,-151.0,0.00016622,2]
[399964439,1766949042478,-500.0,0.00016625,2]
[399964440,1766949042488,-500.0,0.00016625,2]
[399964441,1766949042497,-500.0,0.00016625,2]
[399964442,1766949042506,-500.0,0.00016625,2]
[399964443,1766949042516,-500.0,0.00016625,2]
[399964444,1766949042528,-572.01503076,0.00016625,2]
[399964445,1766949042539,-500.0,0.00016625,2]
[399964446,1766949042548,-500.0,0.00016625,2]
[399964447,1766949042557,-500.0,0.00016625,2]
[399964448,1766949042566,-500.0,0.00016625,2]
[399964449,1766949042575,-500.0,0.00016625,2]
[399964450,1766949042584,-500.0,0.00016625,2]
[399964451,1766949042593,-500.0,0.00016625,2]
[399964452,1766949042602,-500.0,0.00016625,2]
[399964453,1766949042611,-500.0,0.00016625,2]
[399964454,1766949042623,-500.0,0.00016625,2]
[399964455,1766949042634,-360.15934001,0.00016625,2]
[399964456,1766949042771,-139.84065999,0.00016625,2]
[399964457,1766949042781,-511.82657061,0.00016625,2]
[399964458,1766949042791,-341.67429281,0.00016625,2]
[399964459,1766949042802,-158.32570719,0.00016625,2]
[399964460,1766949042813,-500.0,0.00016625,2]
[399964461,1766949042823,-314.94855558,0.00016625,2]
[399964462,1766949042834,-185.05144442,0.00016625,2]
[399964463,1766949042845,-359.42039548,0.00016625,2]
[399964464,1766949042878,-140.57960452,0.00016625,2]
[399964465,1766949042888,-500.0,0.00016625,2]
[399964466,1766949042900,-500.0,0.00016625,2]
[399964467,1766949042909,-500.0,0.00016625,2]
[399964468,1766949042920,-500.0,0.00016625,2]
[399964469,1766949042930,-500.0,0.00016625,2]
[399964470,1766949042941,-273.0884102,0.00016625,2]
[399964471,1766949043048,-226.9115898,0.00016625,2]
[399964472,1766949043058,-500.0,0.00016625,2]
[399964473,1766949043067,-402.2878102,0.00016625,2]
[399964474,1766949043080,-97.7121898,0.00016625,2]
[399964475,1766949043090,-511.26728206,0.00016625,2]
[399964477,1766949043100,-215.02130008,0.00016625,2]
[399964478,1766949043111,-290.32714723,0.00016625,2]
[399964479,1766949043121,-500.0,0.00016625,2]
[399964480,1766949043131,-500.0,0.00016625,2]
[399964481,1766949043140,-500.0,0.00016625,2]
[399964482,1766949043150,-500.0,0.00016625,2]
[399964483,1766949043159,-500.0,0.00016625,2]
[399964484,1766949043170,-500.0,0.00016625,2]
[399964485,1766949043179,-500.0,0.00016625,2]
[399964486,1766949043188,-500.0,0.00016625,2]
[399964487,1766949043197,-531.5118952,0.00016625,2]
[399964488,1766949043206,-500.0,0.00016625,2]
[399964489,1766949043216,-63.78080404,0.00016625,2]
[399964490,1766949043226,-436.21919596,0.00016625,2]
[399964491,1766949043236,-500.0,0.00016625,2]
[399964492,1766949043245,-500.0,0.00016625,2]
[399964493,1766949043255,-232.00711464,0.00016625,2]
[399964494,1766949043287,-4824.99288536,0.00016625,2]
[399964495,1766949043301,-22424.48928315,0.00016625,2]
[399964496,1766949043312,-437.29096427,0.00016625,2]
[399964497,1766949043326,-530.6,0.00016625,2]
[399964498,1766949043337,-59712.11110033,0.00016625,2]
[399964499,1766949043348,-509.65562623,0.00016625,2]
[399964500,1766949043359,-7142.45768139,0.00016625,2]
[399964501,1766949043370,-1267.82664481,0.00016625,2]
[399964502,1766949043381,-9927.6567,0.00016625,2]
[399964503,1766949043392,-865.0,0.00016625,2]
[399964504,1766949043403,-1421.76578285,0.00016625,2]
[399964505,1766949043414,-895761.14621697,0.00016625,2]
[399964506,1766949043423,-150.0,0.00016632,2]
[399964507,1766949043432,-1668.0,0.00016634,2]
[399964508,1766949043441,-150.0,0.00016647,2]
[399964509,1766949043451,-150.0,0.00016647,2]
[399964510,1766949043460,-150.0,0.00016653,2]
[399964511,1766949043469,-15496.32349807,0.00016655,2]
[399964512,1766949043478,-150.0,0.00016656,2]
[399964513,1766949043488,-971.1946189,0.0001666,2]
[399964514,1766949043497,-150.0,0.00016663,2]
[399964515,1766949043507,-390.51226367,0.00016663,2]
[399964516,1766949043516,-150.0,0.00016672,2]
[399964517,1766949043525,-172.21833333,0.00016679,2]
[399964518,1766949043535,-150.0,0.00016687,2]
[399964519,1766949043544,-150.0,0.00016687,2]
[399964520,1766949043553,-150.0,0.00016689,2]
[399964521,1766949043563,-8650.38932789,0.00016691,2]
[399964522,1766949043572,-15496.32349807,0.00016696,2]
[399964523,1766949043581,-1000.0,0.000167,2]
[399964524,1766949043590,-150.0,0.00016703,2]
[399964525,1766949043600,-150.0,0.00016703,2]
[399964526,1766949043609,-150.0,0.00016703,2]
[399964527,1766949043618,-191.15909538,0.00016716,2]
[399964528,1766949043628,-150.0,0.0001672,2]
[399964529,1766949043637,-150.0,0.00016732,2]
[399964530,1766949043646,-570.5676631,0.00016734,2]
[399964531,1766949043657,-500.0,0.00016734,2]
[399964532,1766949043667,-150.0,0.00016735,2]
[399964533,1766949043676,-15496.32349807,0.00016736,2]
[399964534,1766949043686,-390.51226367,0.00016742,2]
[399964535,1766949043695,-150.0,0.00016744,2]
[399964536,1766949043704,-150.0,0.00016744,2]
[399964537,1766949043713,-150.0,0.0001675,2]
[399964538,1766949043723,-172.21833333,0.00016753,2]
[399964539,1766949043732,-150.0,0.00016753,2]
[399964540,1766949043742,-3699.345,0.00016757,2]
[399964541,1766949043753,-2431.0,0.00016757,2]
[399964542,1766949043763,-564.0,0.00016757,2]
[399964543,1766949043776,-500.0,0.00016764,2]
[399964544,1766949043785,-150.0,0.00016774,2]
[399964545,1766949043795,-150.0,0.00016774,2]
[399964546,1766949043805,-15496.32349807,0.00016777,2]
[399964547,1766949043814,-150.0,0.00016786,2]
[399964548,1766949043823,-150.0,0.00016786,2]
[399964549,1766949043832,-150.0,0.00016798,2]
[399964550,1766949043841,-150.0,0.00016798,2]
[399964551,1766949043850,-150.0,0.00016798,2]
[399964552,1766949043859,-1000.0,0.000168,2]
[399964553,1766949043868,-150.0,0.00016816,2]
[399964554,1766949043882,-15496.32349807,0.00016818,2]
[399964555,1766949043891,-150.0,0.0001682,2]
[399964556,1766949043901,-390.51226367,0.00016821,2]
[399964557,1766949043910,-150.0,0.00016825,2]
[399964558,1766949043919,-172.21833333,0.00016826,2]
[399964559,1766949043930,-150.0,0.00016845,2]
[399964560,1766949043940,-150.0,0.00016845,2]
[399964561,1766949043950,-150.0,0.00016853,2]
[399964562,1766949043960,-150.0,0.00016859,2]
[399964563,1766949043969,-15496.32349807,0.00016859,2]
[399964564,1766949043978,-150.0,0.0001686,2]
[399964566,1766949043987,-150.0,0.00016886,2]
[399964567,1766949043998,-150.0,0.00016886,2]
[399964568,1766949044007,-150.0,0.00016892,2]
[399964569,1766949044017,-345.9768856,0.000169,2]
[399964570,1766949044026,-191.15909538,0.000169,2]
[399964571,1766949044035,-1000.0,0.000169,2]
[399964573,1766949044044,-172.21833333,0.000169,2]
[399964574,1766949044054,-322.03359741,0.000169,2]
[399964576,1766949044063,-405.16201081,0.000169,2]
[399964578,1766949044072,-15496.32349807,0.000169,2]
[399964579,1766949044081,-8650.38932789,0.000169,2]
[399964580,1766949044092,-352.50332532,0.000169,2]
[399964581,1766949044103,-390.51226367,0.000169,2]
[399964582,1766949044113,-526.62278413,0.000169,2]
[399964583,1766949044124,-280.048538,0.000169,2]
[399964584,1766949044134,-150.0,0.00016901,2]
[399964585,1766949044144,-284.0,0.00016903,2]
[399964586,1766949044154,-150.0,0.00016905,2]
[399964587,1766949044163,-171.92,0.00016907,2]
[399964588,1766949044174,-150.0,0.00016916,2]
[399964589,1766949044184,-150.0,0.0001692,2]
[399964590,1766949044194,-150.0,0.00016923,2]
[399964591,1766949044205,-150.0,0.00016939,2]
[399964592,1766949044215,-150.0,0.00016944,2]
[399964593,1766949044224,-397.0,0.00016947,2]
[399964594,1766949044233,-150.0,0.00016953,2]
[399964595,1766949044243,-492.0,0.00016959,2]
[399964596,1766949044253,-150.0,0.00016973,2]
[399964597,1766949044263,-150.0,0.00016973,2]
[399964598,1766949044275,-261.52919059,0.00016986,2]
[399964599,1766949044285,-291.19227716,0.00016986,2]
[399964600,1766949044295,-193.20504799,0.00016986,2]
[399964601,1766949044304,-159.10391865,0.00016986,2]
[399964602,1766949044313,-257.38593742,0.00016986,2]
[399964603,1766949044323,-298.68946488,0.00016986,2]
[399964604,1766949044333,-288.29142727,0.00016986,2]
[399964605,1766949044342,-191.18737209,0.00016986,2]
[399964606,1766949044351,-156.10987043,0.00016986,2]
[399964607,1766949044362,-157.03567619,0.00016986,2]
[399964608,1766949044371,-204.47837641,0.00016986,2]
[399964609,1766949044380,-172.24524013,0.00016986,2]
[399964610,1766949044390,-273.23141721,0.00016986,2]
[399964611,1766949044399,-266.31997745,0.00016986,2]
[399964612,1766949044410,-2507.4518792,0.00016993,2]
[399964613,1766949044419,-4587.8701587,0.00016993,2]
[399964614,1766949044428,-8828.240697,0.00016993,2]
[399964615,1766949044437,-166.66,0.00016997,2]
[399964616,1766949044447,-151.0,0.00016997,2]
[399964617,1766949044456,-1104.26040629,0.00016999,5]
[399964618,1766949044466,-1104.26040629,0.00016999,5]
[399964619,1766949044475,-1104.26040629,0.00016999,5]
[399964620,1766949044484,-300.0,0.00016999,2]
[399964621,1766949044494,-300.0,0.00016999,2]
[399964622,1766949044505,-300.0,0.00016999,2]
[399964623,1766949044514,-666.0,0.00016999,2]
[399964624,1766949044524,-362664.73198088,0.00017,2]
[399964625,1766949044533,-1320403.07943084,0.00017,2]
[399964626,1766949044869,-151.0,0.00015744,2]
[399964627,1766949044882,-151.0,0.00015744,2]
[399964628,1766949044891,-4810.0,0.00016757,2]
[399964629,1766949044900,-995854.33492526,0.00017,2]
[399964630,1766949044912,-1674.47079208,0.00017,2]
[399964681,1766949046382,-437.31516337,0.00016532,2]
[399964683,1766949046393,-62.68483663,0.00017,2]
[399964834,1766949093592,-252.57,0.00021918,30]
[399964836,1766949157700,264.29,0.00030137,120]
[399964845,1766949380027,239.94,0.00021918,30]
[399964846,1766949380878,457.35532977,0.00030136,120]
[399964847,1766949542506,166.66,0.00013252,2]
[399964856,1766949815809,-1104.26040629,0.00014587,5]
[399964864,1766949976859,546.57,0.00013402,2]
[399964866,1766949984661,1600.0,0.0001341,2]
[399964870,1766950150994,500.0,0.00013298,2]
[399964877,1766950231422,-166.66,0.00013531,2]
[399964878,1766950231431,-250.0,0.00013539,2]
[399964880,1766950231441,-300.0,0.00013548,2]
[399964882,1766950231451,-300.0,0.00013737,2]
[399964884,1766950231460,-300.0,0.00013737,2]
[399964886,1766950231470,-166.66,0.0001381,2]
[399964888,1766950231480,-187.0,0.00013989,2]
[399964889,1766950231489,-1200.0,0.00013989,2]
[399964890,1766950231499,-150.0,0.00013989,2]
[399964891,1766950231696,-391.52136296,0.00013989,2]
[399964892,1766950231707,-83723.18773033,0.0001399,2]
[399964893,1766950231719,-2974.86376039,0.0001399,2]
[399964894,1766950231728,-1218.20325282,0.0001404,2]
[399964895,1766950231738,-969.45,0.00014049,2]
[399964896,1766950231747,-166.66,0.00014089,2]
[399964897,1766950231756,-271.6027206,0.00014103,2]
[399964898,1766950231765,-332.93361467,0.00014103,2]
[399964899,1766950231775,-592.71189039,0.00014137,2]
[399964900,1766950231798,-1693.03810961,0.00014137,2]
[399964902,1766950231807,-500.0,0.00014273,2]
[399964904,1766950231816,-30.57916717,0.00014273,2]
[399964906,1766950231827,-469.42083283,0.00014273,2]
[399964908,1766950231838,-150.0,0.00014273,2]
[399964910,1766950231847,-150.0,0.00014273,2]
[399964912,1766950231856,-150.0,0.00014273,2]
[399964914,1766950231865,-150.0,0.00014273,2]
[399964916,1766950231874,-150.0,0.00014273,2]
[399964918,1766950231884,-154.80154307,0.00014273,2]
[399964919,1766950231893,-44.04538268,0.00014273,2]
[399964922,1766950231904,-105.95461732,0.00014273,2]
[399964924,1766950231913,-177.25081937,0.00014295,2]
[399964926,1766950231922,-500.0,0.00014299,2]
[399964928,1766950231931,-500.0,0.00014299,2]
[399964930,1766950231940,-500.0,0.000143,2]
[399964932,1766950231950,-353.51145249,0.000143,2]
[399964934,1766950231959,-150.0,0.000143,2]
[399964936,1766950231969,-150.0,0.000143,2]
[399964938,1766950231978,-179.94386408,0.000143,2]
[399964940,1766950231987,-150.0,0.000143,2]
[399964942,1766950231996,-150.0,0.00014313,2]
[399964944,1766950232005,-250.0,0.00014313,2]
[399964946,1766950232014,-150.0,0.00014313,2]
[399964948,1766950232024,-150.0,0.00014313,2]
[399964949,1766950232033,-150.0,0.00014313,2]
[399964951,1766950232042,-152.30713941,0.00014313,2]
[399964953,1766950232051,-150.0,0.00014313,2]
[399964955,1766950232060,-500.0,0.00014326,2]
[399964957,1766950232069,-500.0,0.00014326,2]
[399964960,1766950232079,-631.82331902,0.00014328,2]
[399964961,1766950232088,-200.0,0.00014328,2]
[399964963,1766950232097,-150.0,0.00014328,2]
[399964965,1766950232106,-201.65928417,0.00014328,2]
[399964966,1766950232115,-150.0,0.0001434,2]
[399964967,1766950232124,-150.0,0.0001434,2]
[399964968,1766950232135,-202.0,0.00014354,2]
[399964969,1766950232144,-500.0,0.00014354,2]
[399964970,1766950232155,-166.66,0.00014368,2]
[399964971,1766950232165,-150.0,0.00014368,2]
[399964972,1766950232174,-150.0,0.00014368,2]
[399964973,1766950232183,-151.0,0.00014385,2]
[399964974,1766950232193,-151.0,0.00014385,2]
[399964975,1766950232202,-350.89092127,0.00014387,2]
[399964976,1766950232211,-500.0,0.00014387,2]
[399964977,1766950232220,-251.61252334,0.00014387,2]
[399964978,1766950232229,-500.0,0.00014387,2]
[399964979,1766950232240,-500.0,0.00014387,2]
[399964980,1766950232250,-500.0,0.00014387,2]
[399964981,1766950232259,-500.0,0.00014387,2]
[399964982,1766950232270,-500.0,0.00014387,2]
[399964983,1766950232281,-500.0,0.00014387,2]
[399964984,1766950232291,-500.0,0.00014387,2]
[399964985,1766950232302,-500.0,0.00014387,2]
[399964986,1766950232311,-500.0,0.00014387,2]
[399964987,1766950232321,-500.0,0.00014387,2]
[399964988,1766950232330,-500.0,0.00014387,2]
[399964989,1766950232339,-500.0,0.00014387,2]
[399964990,1766950232349,-500.0,0.00014387,2]
[399964991,1766950232358,-500.0,0.00014387,2]
[399964992,1766950232367,-500.0,0.00014387,2]
[399964993,1766950232377,-500.0,0.00014387,2]
[399964994,1766950232386,-500.0,0.00014387,2]
[399964995,1766950232395,-500.0,0.00014387,2]
[399964996,1766950232404,-500.0,0.00014387,2]
[399964997,1766950232414,-500.0,0.00014387,2]
[399964998,1766950232423,-500.0,0.00014387,2]
[399964999,1766950232433,-181.00946209,0.00014387,2]
[399965000,1766950232442,-500.0,0.00014387,2]
[399965001,1766950232452,-500.0,0.00014387,2]
[399965002,1766950232461,-500.0,0.00014387,2]
[399965003,1766950232471,-500.0,0.00014387,2]
[399965004,1766950232480,-500.0,0.00014387,2]
[399965005,1766950232491,-500.0,0.00014387,2]
[399965006,1766950232500,-500.0,0.00014387,2]
[399965007,1766950232510,-500.0,0.00014387,2]
[399965008,1766950232519,-500.0,0.00014387,2]
[399965009,1766950232528,-500.0,0.00014387,2]
[399965010,1766950232537,-500.0,0.00014387,2]
[399965011,1766950232547,-500.0,0.00014387,2]
[399965012,1766950232556,-354.4145729,0.00014387,2]
[399965013,1766950232565,-500.0,0.00014387,2]
[399965014,1766950232576,-500.0,0.00014387,2]
[399965015,1766950232586,-500.0,0.00014387,2]
[399965016,1766950232595,-500.0,0.00014387,2]
[399965017,1766950232605,-500.0,0.00014387,2]
[399965018,1766950232615,-500.0,0.00014387,2]
[399965019,1766950232624,-500.0,0.00014387,2]
[399965020,1766950232634,-500.0,0.00014387,2]
[399965021,1766950232645,-500.0,0.00014387,2]
[399965022,1766950232655,-500.0,0.00014387,2]
[399965023,1766950232668,-500.0,0.00014387,2]
[399965024,1766950232677,-500.0,0.00014387,2]
[399965025,1766950232686,-500.0,0.00014387,2]
[399965026,1766950232695,-500.0,0.00014387,2]
[399965027,1766950232712,-500.0,0.00014387,2]
[399965028,1766950232724,-500.0,0.00014387,2]
[399965029,1766950232734,-500.0,0.00014387,2]
[399965030,1766950232745,-500.0,0.00014387,2]
[399965031,1766950232756,-500.0,0.00014387,2]
[399965032,1766950232767,-500.0,0.00014387,2]
[399965033,1766950232778,-500.0,0.00014387,2]
[399965034,1766950232788,-500.0,0.00014387,2]
[399965035,1766950232798,-500.0,0.00014387,2]
[399965036,1766950232807,-500.0,0.00014387,2]
[399965037,1766950232819,-500.0,0.00014387,2]
[399965038,1766950232829,-500.0,0.00014387,2]
[399965039,1766950232839,-500.0,0.00014387,2]
[399965040,1766950232848,-250.0,0.00014387,2]
[399965041,1766950232857,-500.0,0.00014387,2]
[399965042,1766950232866,-500.0,0.00014387,2]
[399965043,1766950232876,-183303.76847059,0.00014388,2]
[399965044,1766950232893,-44010.7815,0.00014388,2]
[399965046,1766950237481,-10634.31754767,0.00014388,2]
[399965047,1766950237536,-16981.1783117,0.00014388,2]
[399965048,1766950237591,-3306.37281369,0.00014388,2]
[399965049,1766950237647,-443.21634454,0.00014387,2]
[399965052,1766950239544,-56.78365546,0.00014387,2]
[399965053,1766950239554,-445.15880172,0.00014387,2]
[399965054,1766950239599,-54.84119828,0.00014387,2]
[399965055,1766950239608,-278.42075138,0.00014387,2]
[399965056,1766950239620,-273.77153773,0.00014387,2]
[399965057,1766950239630,-741763.58135635,0.00014388,2]
[399965058,1766950239639,-150.0,0.00014395,2]
[399965059,1766950239648,-250.0,0.00014395,2]
[399965060,1766950239657,-211.20663021,0.00014423,2]
[399965061,1766950239669,-201.8815823,0.00014479,2]
[399965062,1766950239680,-280.048538,0.00014488,2]
[399965063,1766950239691,-29577.5296,0.00014488,2]
[399965064,1766950239701,-1901.4292,0.00014488,2]
[399965065,1766950239711,-999.0,0.00014515,3]
[399965066,1766950239723,-6905.51028374,0.00014547,2]
[399965067,1766950239732,-10847.42644873,0.00014547,2]
[399965068,1766950239743,-195.25613187,0.00014547,2]
[399965069,1766950239755,-4475.0495,0.00014548,2]
[399965070,1766950239765,-500.51013306,0.00014573,2]
[399965071,1766950239776,-169.46577369,0.00014573,2]
[399965072,1766950239786,-224.28186878,0.00014573,2]
[399965073,1766950239797,-500.0,0.00014573,2]
[399965074,1766950239806,-500.85459949,0.00014573,2]
[399965075,1766950239816,-500.0,0.00014573,2]
[399965076,1766950239826,-500.0,0.00014573,2]
[399965077,1766950239835,-165.07212519,0.00014573,2]
[399965078,1766950239844,-500.0,0.00014573,2]
[399965079,1766950239853,-500.0,0.00014573,2]
[399965080,1766950239863,-500.0,0.00014573,2]
[399965081,1766950239874,-500.0,0.00014573,2]
[399965082,1766950239883,-254.67001786,0.00014573,2]
[399965083,1766950239893,-165.96450787,0.00014573,2]
[399965084,1766950239903,-500.0,0.00014573,2]
[399965085,1766950239915,-500.0,0.00014573,2]
[399965086,1766950239925,-500.0,0.00014573,2]
[399965087,1766950239936,-235.96212979,0.00014573,2]
[399965088,1766950239945,-974.54,0.00014573,2]
[399965089,1766950239956,-570.5676631,0.00014587,2]
[399965090,1766950239966,-500.0,0.00014587,2]
[399965091,1766950239976,-646.48024776,0.00014587,2]
[399965092,1766950239985,-166.66,0.00014647,2]
[399965093,1766950239994,-23229.1121502,0.00014652,2]
[399965094,1766950240003,-6905.51028365,0.00014808,2]
[399965095,1766950240013,-10847.42644864,0.00014808,2]
[399965096,1766950240022,-594.94736161,0.00014832,2]
[399965097,1766950240032,-974.54,0.00014847,2]
[399965098,1766950240041,-195.25613183,0.00014883,2]
[399965099,1766950240050,-300.0,0.00014884,2]
[399965100,1766950240059,-2500.0,0.00014884,2]
[399965101,1766950240068,-333.68168469,0.00014884,2]
[399965102,1766950240078,-198.31759794,0.00014884,2]
[399965103,1766950240088,-250.0,0.00014884,2]
[399965104,1766950240098,-195.0,0.00014884,2]
[399965105,1766950240109,-300.0,0.00014884,2]
[399965106,1766950240120,-600.0,0.00014884,2]
[399965107,1766950240129,-600.0,0.00014884,2]
[399965108,1766950240139,-600.0,0.00014884,2]
[399965109,1766950240149,-251.42741313,0.00014884,2]
[399965110,1766950240158,-2500.0,0.00014884,2]
[399965111,1766950240168,-195.0,0.00014884,2]
[399965112,1766950240177,-195.0,0.00014884,2]
[399965113,1766950240186,-250.0,0.00014884,2]
[399965114,1766950240196,-195.0,0.00014884,2]
[399965115,1766950240205,-5014.92,0.00014999,2]
[399965116,1766950240214,-2042.52030711,0.00015,2]
[399965117,1766950240223,-21378.21540369,0.00015,2]
[399965118,1766950240233,-1155.76996984,0.00015,2]
[399965119,1766950240242,-33612.87900818,0.00015,2]
[399965120,1766950240254,-381.57557352,0.00015033,2]
[399965121,1766950240263,-6905.51028365,0.0001507,2]
[399965122,1766950240274,-10847.42644864,0.0001507,2]
[399965123,1766950240284,-1600.0,0.00015086,2]
[399965124,1766950240294,-255.0,0.00015108,2]
[399965125,1766950240304,-1000.0,0.00015121,2]
[399965126,1766950240314,-1000.0,0.00015121,2]
[399965127,1766950240324,-1000.0,0.00015121,2]
[399965128,1766950240333,-1000.0,0.00015121,2]
[399965129,1766950240343,-1000.0,0.00015121,2]
[399965130,1766950240353,-1000.0,0.00015121,2]
[399965131,1766950240363,-712.239044,0.00015121,2]
[399965132,1766950240373,-1000.0,0.00015121,2]
[399965133,1766950240382,-974.54,0.00015121,2]
[399965134,1766950240391,-177.25081937,0.00015163,2]
[399965135,1766950240401,-195.25613183,0.00015219,2]
[399965136,1766950240411,-150.0,0.00015288,2]
[399965137,1766950240420,-150.0,0.00015288,2]
[399965138,1766950240430,-150.0,0.00015288,2]
[399965139,1766950240439,-150.0,0.00015288,2]
[399965140,1766950240449,-150.0,0.00015288,2]
[399965141,1766950240458,-150.0,0.00015288,2]
[399965142,1766950240468,-150.0,0.00015288,2]
[399965143,1766950240478,-298.69511274,0.00015288,2]
[399965144,1766950240487,-150.0,0.00015288,2]
[399965145,1766950240496,-150.0,0.00015288,2]
[399965146,1766950240505,-150.0,0.00015288,2]
[399965147,1766950240515,-150.0,0.00015288,2]
[399965148,1766950240525,-150.0,0.00015288,2]
[399965149,1766950240535,-150.0,0.00015288,2]
[399965150,1766950240544,-150.0,0.00015288,2]
[399965151,1766950240554,-1517.64,0.000153,2]
[399965152,1766950240564,-150.0,0.00015324,2]
[399965153,1766950240573,-6905.51028365,0.00015331,2]
[399965154,1766950240583,-10847.42644864,0.00015331,2]
[399965155,1766950240593,-150.0,0.00015332,2]
[399965156,1766950240604,-150.0,0.00015336,2]
[399965157,1766950240613,-150.0,0.00015356,2]
[399965158,1766950240623,-150.0,0.00015358,2]
[399965159,1766950240633,-150.0,0.0001536,2]
[399965160,1766950240642,-150.0,0.00015369,2]
[399965161,1766950240651,-150.0,0.00015377,2]
[399965162,1766950240661,-150.0,0.00015385,2]
[399965163,1766950240674,-1680.0,0.00015388,2]
[399965164,1766950240683,-150.0,0.00015394,2]
[399965165,1766950240693,-974.54,0.00015395,2]
[399965166,1766950240703,-150.0,0.00015396,2]
[399965167,1766950240714,-506.31384754,0.000154,2]
[399965168,1766950240723,-150.0,0.00015422,2]
[399965169,1766950240732,-150.0,0.00015424,2]
[399965170,1766950240742,-150.0,0.00015429,2]
[399965171,1766950240751,-150.0,0.00015432,2]
[399965172,1766950240760,-150.0,0.00015433,2]
[399965173,1766950240770,-150.0,0.00015449,2]
[399965174,1766950240780,-150.0,0.00015466,2]
[399965175,1766950240788,-150.0,0.00015468,2]
[399965176,1766950240799,-150.0,0.00015476,2]
[399965177,1766950240808,-150.0,0.00015482,2]
[399965178,1766950240818,-150.0,0.00015492,2]
[399965179,1766950240828,-150.0,0.000155,2]
[399965180,1766950240837,-150.0,0.000155,2]
[399965181,1766950240846,-150.0,0.00015505,2]
[399965182,1766950240856,-150.0,0.00015511,2]
[399965183,1766950240865,-150.0,0.0001553,2]
[399965184,1766950240874,-150.0,0.0001553,2]
[399965185,1766950240883,-150.0,0.0001553,2]
[399965186,1766950240892,-150.0,0.0001553,2]
[399965187,1766950240902,-150.0,0.00015541,2]
[399965188,1766950240912,-195.25613183,0.00015555,2]
[399965189,1766950240922,-150.0,0.00015556,2]
[399965190,1766950240932,-150.0,0.00015559,2]
[399965191,1766950240941,-150.0,0.00015571,2]
[399965192,1766950240951,-150.0,0.00015571,2]
[399965193,1766950240962,-150.0,0.00015577,2]
[399965194,1766950240971,-150.0,0.00015579,2]
[399965195,1766950240981,-322.6107,0.0001558,2]
[399965196,1766950240991,-1000.0,0.0001558,2]
[399965197,1766950241000,-1000.0,0.0001558,2]
[399965198,1766950241009,-500.0,0.0001558,2]
[399965199,1766950241019,-500.0,0.0001558,2]
[399965200,1766950241028,-500.0,0.0001558,2]
[399965201,1766950241038,-500.0,0.0001558,2]
[399965202,1766950241048,-500.0,0.0001558,2]
[399965203,1766950241057,-500.0,0.0001558,2]
[399965204,1766950241067,-500.0,0.0001558,2]
[399965205,1766950241077,-500.0,0.0001558,2]
[399965206,1766950241086,-500.0,0.0001558,2]
[399965207,1766950241096,-500.0,0.0001558,2]
[399965208,1766950241106,-500.0,0.0001558,2]
[399965209,1766950241116,-500.0,0.0001558,2]
[399965210,1766950241126,-500.0,0.0001558,2]
[399965211,1766950241136,-500.0,0.0001558,2]
[399965212,1766950241146,-500.0,0.0001558,2]
[399965213,1766950241156,-500.0,0.0001558,2]
[399965214,1766950241167,-500.0,0.0001558,2]